Cogmind - Beta 15 @@@ ROGUE MODE // 2025.06.01 @ 21:47:55 Player: McSaucyNugget Result: Destroyed by as-29713 with Assembled Blade Performance ------------- Evolutions (0) 0 Regions Visited (2) 400 Robots Destroyed (9) 45 Value Destroyed (192) 192 Prototype IDs (0) 0 Alien Tech Used (0) 0 Bonus (0) 0 TOTAL SCORE: 637 Bonus ------- None Cogmind --------- Core Integrity 0/250 Matter 280/300 Energy 100/100 System Corruption 7% Temperature Cool (0) Movement Rolling (175) Ox5 Location -10/Mines Parts ------- > --- POWER (1) -------- (None) > --- PROPULSION (2) --- Compact Wheel > --- UTILITY (2) ------ Huge Storage Unit Seismic Detector > --- WEAPON (2) ------- Heavy Flail > --- INVENTORY (25) --- Ion Engine Ion Engine Light Ion Engine Light Nuclear Core Armored Treads Compact Wheel Compact Wheel Cesium-ion Thruster Small Storage Unit Structural Scanner Sensor Array Improved Terrain Scan Processor Improved Light Armor Plating Tractor Beam Assault Rifle Light Assault Rifle Light Assault Rifle Light Assault Rifle Light Assault Rifle Mining Claw Mining Claw Peak State ------------ > --- POWER ------------ Light Angular Momentum Engine > --- PROPULSION ------- Compact Wheel > --- UTILITY ---------- Huge Storage Unit Seismic Detector > --- WEAPON ----------- Beamcaster Heavy Flail > --- INVENTORY -------- Ion Engine Ion Engine Light Ion Engine Light Nuclear Core Armored Treads Compact Wheel Compact Wheel Cesium-ion Thruster Small Storage Unit Structural Scanner Sensor Array Improved Terrain Scan Processor Improved Light Armor Plating Tractor Beam Assault Rifle Light Assault Rifle Light Assault Rifle Light Assault Rifle Light Assault Rifle Mining Claw Mining Claw [Rating: 19] Favorites ----------- Power Light Nuclear Core Engine Ion Engine Power Core Light Nuclear Core Propulsion Compact Wheel Treads Light Treads Wheel Compact Wheel Utility Huge Storage Unit Device Seismic Detector Storage Huge Storage Unit Processor Signal Interpreter Protection Light Armor Plating Weapon Medium Laser Energy Gun Medium Laser Ballistic Gun Assault Rifle Launcher Grenade Launcher Impact Weapon Heavy Flail Slashing Weapon Mining Claw Build | -11 -10 -10 ------- Run | Yrd Mat Min Slots Evolved . | . . . Power . | . . . Propulsion . | . . . Utility . | . . . Weapon . | . . . Parts Attached 21 | 6 11 4 Power 3 | 1 1 1 Engine 2 | 1 . 1 Core 1 | . 1 . Reactor . | . . . Propulsion 5 | 2 3 . Treads 2 | 2 . . Leg . | . . . Wheel 3 | . 3 . Hover . | . . . Flight . | . . . Utility 5 | 1 4 . Device 1 | . 1 . Storage 2 | 1 1 . Processor 1 | . 1 . Hackware . | . . . Protection 1 | . 1 . Artifact . | . . . Weapon 8 | 2 3 3 Energy Gun 2 | . 1 1 Energy Cannon . | . . . Ballistic Gun 2 | 2 . . Ballistic Cannon . | . . . Launcher 1 | . . 1 Special Weapon . | . . . Impact Weapon 1 | . . 1 Slashing Weapon 2 | . 2 . Piercing Weapon . | . . . Special Melee Weapon . | . . . Unidentified Prototypes . | . . . Corrupted Parts 2 | . . 2 System Corruption 5 | . . 5 Parts Lost 8 | . 4 4 Power 1 | . . 1 Propulsion 3 | . 2 1 Utility . | . . . Weapon 4 | . 2 2 Highest Loss Streak 4 | . 2 4 To Critical Strikes . | . . . Average Backups 9 | 1 6 18 Power 2 | . 2 3 Propulsion 1 | 1 1 2 Utility 2 | . 1 4 Weapon 3 | . 1 7 Tool/Special . | . . . Unused Backups 15 | . . 15 Power 2 | . . 2 Propulsion 4 | . . 4 Utility 4 | . . 4 Weapon 5 | . . 5 Tool/Special . | . . . Average Slot Usage (%) 90 | . 86 98 Engine 5 | . 4 7 Core 8 | . 9 6 Treads 6 | . 8 . Wheel 17 | . 13 27 Device 5 | . 2 14 Storage 14 | . 14 14 Processor 3 | . 5 . Protection 2 | . 3 . Energy Gun 9 | . 5 20 Ballistic Gun 10 | . 14 . Slashing Weapon 5 | . 4 6 Peak Build Rating 19 | 6 10 19 Average Rating 9 | 4 7 14 On Entrance 5 | . 6 10 Naked Turns . | . . . Heaviest Build 98 | 13 92 98 Greatest Support 40 | 40 40 26 Greatest Overweight (x) 6 | . 5 6 Average Overweight (x) 2 | . 1 3 Largest Inventory Capacity 25 | 8 25 25 Average Capacity 17 | 7 16 25 Most Carried 22 | 3 15 22 Average Carried 9 | 2 6 18 Final Capacity 25 | 8 25 25 Final Carried 21 | 3 15 21 Class Distribution -------------------- 100% | Mutant Dominant Class ---------------- Mutant | -10/Materials Mutant | -10/Mines Resources | -11 -10 -10 ----------- Run | Yrd Mat Min Matter Collected 523 | 238 216 69 Remotely . | . . . Salvage Created 357 | . 272 85 Parts 21 | . 18 3 Haulers Intercepted . | . . . Recyclers Shooed 2 | . 2 . Parts Field Recycled . | . . . Retrieved Matter . | . . . Parts Self-Destructed . | . . . Prevented . | . . . Kills | -11 -10 -10 ------- Run | Yrd Mat Min Combat Hostiles Destroyed 7 | . 5 2 Melee 1 | . 1 . Guns 4 | . 4 . AOE 2 | . . 2 Classes Destroyed 6 | . 4 2 Worker 1 | . 1 . Tunneler 1 | . . 1 Recycler 2 | . 1 1 Swarmer 1 | . 1 . Grunt 4 | . 4 . Assembled 2 | . . 2 Best Kill Streak 3 | . 3 3 Combat Bots Only 3 | . 3 2 Max Kills in Single Turn 3 | . 1 3 Gunslinging . | . . . Exploded 2 | . . 2 Melee 1 | . 1 . Uniques/NPCs Destroyed . | . . . Combat | -11 -10 -10 -------- Run | Yrd Mat Min Hostile Shots Fired 97 | . 63 34 Missed 32 | . 17 15 Hits 65 | . 46 19 Melee 8 | . . 8 Projectile 57 | . 46 11 Damage Taken 965 | . 539 426 Core 279 | . 124 155 Absorbed by Shields . | . . . Core Remaining (%) 100 | 100 . . Volleys Fired 31 | 1 27 3 Largest 2 | 1 2 2 Hottest 125 | 20 70 125 Shots Fired 52 | 1 45 6 Gun 50 | 1 45 4 Cannon . | . . . Launcher 2 | . . 2 Special . | . . . Kinetic 43 | 1 42 . Thermal 7 | . 3 4 Explosive 2 | . . 2 Electromagnetic . | . . . Robot Hit Streak 7 | 1 7 5 Robot Miss Streak 3 | . 3 . Penetration Max . | . . . Secondary Targets 2 | . 2 . Max Gunslinging Chain 1 | . 1 . Shots Hit Robots 36 | 1 30 5 Core Hits 21 | . 14 7 Critical Kills . | . . . Critical Parts Destroyed . | . . . Critical Strikes 1 | . 1 . Burn 1 | . 1 . Melee Attacks 10 | . 7 3 Impact 2 | . . 2 Slashing 8 | . 7 1 Piercing . | . . . Sneak Attacks 1 | . . 1 Combat Hostiles . | . . . Follow-up Attacks . | . . . Damage Inflicted 684 | 8 363 313 Guns 405 | 8 341 56 Cannons . | . . . Explosions 210 | . . 210 Melee 69 | . 22 47 Ramming . | . . . Kinetic 337 | 8 329 . Thermal 68 | . 12 56 Explosive 210 | . . 210 Electromagnetic . | . . . Impact . | . . . Slashing 69 | . 22 47 Piercing . | . . . Highest Corruption 7 | . . 7 Average Corruption 3 | . . 3 Corruption Purged . | . . . Corruption Blocked . | . . . Effects 2 | . . 2 Energy Discharges 1 | . . 1 Misfires 1 | . . 1 Overload Shots . | . . . Overflow Damage 7 | . . 7 Projectiles . | . . . Explosions . | . . . Melee 7 | . . 7 Knockbacks . | . . . Impact . | . . . Kinetic . | . . . Secondary . | . . . Self-Inflicted Damage 9 | . . 9 Shots 1 | . . 1 Rammed . | . . . Targets Rammed . | . . . Kicked . | . . . Crushed . | . . . Highest Temperature 71 | . 44 71 Average Temperature 20 | . 11 38 Received Heat Transfer 248 | . 228 20 Siege Activations . | . . . Martial Activations . | . . . Shielding Activations . | . . . Robots Disrupted . | . . . Combat Hostiles . | . . . Robots Corrupted . | . . . Combat Hostiles . | . . . Parts Fried . | . . . Impact Corruptions . | . . . Robots Melted . | . . . Combat Hostiles . | . . . Parts Melted . | . . . Heat Transferred 222 | . 111 111 Parts Sabotaged . | . . . Parts Stolen . | . . . Parts Stripped . | . . . Power Chain Reactions . | . . . Alert | -11 -10 -10 ------- Run | Yrd Mat Min Maximum Alert Level . | . . . Low Security (%) 100 | 100 100 100 Level 1 . | . . . Level 2 . | . . . Level 3 . | . . . Level 4 . | . . . Level 5 . | . . . High Security . | . . . Max Security . | . . . Peak Influence 60 | . 60 20 Initial . | . . . Average 6 | . 9 . Influence Increases 223 | . 197 26 Destroy 0b10 Robot/C 100 | . 100 . Destroy 0b10 Robot/NC 20 | . 10 10 Destroy Leader 20 | . 20 . Successful Hack 4 | . 4 . Destroy Structure 19 | . 3 16 Lose Combat Pursuer 60 | . 60 . Influence Decreases 223 | . 197 26 Time Decay 162 | . 157 5 Lost Part 41 | . 20 21 Purge Threat 20 | . 20 . Squads Dispatched . | . . . Investigation . | . . . Extermination . | . . . Reinforcement . | . . . Assault . | . . . Garrison . | . . . Intercept . | . . . Searches Triggered . | . . . Construction Impeded . | . . . Haulers Reinforced . | . . . Active Scanning Responses . | . . . Cargo Convoy Interrupts . | . . . Stealth | -11 -10 -10 --------- Run | Yrd Mat Min Distress Signals 1 | . 1 . Communications Jammed . | . . . Distress Signals . | . . . Times Spotted 34 | . 16 18 Peak Tracking Total 18 | . 4 18 Tactical Retreats 5 | . 3 2 Traps | -11 -10 -10 ------- Run | Yrd Mat Min Traps Triggered 5 | . 3 2 Indirectly . | . . . Trap Hack Attempts . | . . . Triggered . | . . . Disarmed . | . . . Reprogrammed . | . . . Reused . | . . . Traps Extracted . | . . . Installed . | . . . Triggered . | . . . Machines | -11 -10 -10 ---------- Run | Yrd Mat Min Machines Disabled . | . . . Max in Single Turn . | . . . Machines Repaired . | . . . Machines Dismantled . | . . . Machines Sabotaged . | . . . Overloaded Fab Kills . | . . . Hacking | -11 -10 -10 --------- Run | Yrd Mat Min Machines Accessed 4 | . 3 1 Terminals 3 | . 3 . Fabricators . | . . . Repair Stations . | . . . Recycling Units . | . . . Scanalyzers . | . . . Garrison Access . | . . . Total Hacks 6 | . 5 1 Successful 3 | . 2 1 Failed 3 | . 3 . Catastrophic . | . . . Database Lockouts . | . . . Manual . | . . . Terminals 5 | . 5 . Fabricators . | . . . Repair Stations . | . . . Recycling Units . | . . . Scanalyzers . | . . . Garrison Access . | . . . Terminal Hacks 3 | . 2 1 Open Door 1 | . . 1 Emergency Access Points 1 | . 1 . Unreport Threat 1 | . 1 . Fabricator Hacks . | . . . Repair Station Hacks . | . . . Recycling Unit Hacks . | . . . Scanalyzer . | . . . Garrison Access Hacks . | . . . Unauthorized Hacks . | . . . Terminals . | . . . Fabricators . | . . . Repair Stations . | . . . Recycling Units . | . . . Scanalyzers . | . . . Garrison Access . | . . . Data Cores Recovered . | . . . Used . | . . . Hacking Detections 2 | . 2 . Full Trace Events . | . . . Feedback Events . | . . . Feedback Blocked . | . . . Robot Schematics Acquired . | . . . Robots Built . | . . . Authchips . | . . . Time . | . . . Total Robot Build Rating . | . . . Part Schematics Acquired . | . . . Parts Built . | . . . Authchips . | . . . Time . | . . . Total Part Build Rating . | . . . Parts Repaired . | . . . Time . | . . . Parts Recycled . | . . . Recycled Matter . | . . . Retrieved Matter . | . . . Retrieved Components . | . . . Parts Scanalyzed . | . . . Part Schematics Acquired . | . . . Parts Damaged . | . . . Bothacking | -11 -10 -10 ------------ Run | Yrd Mat Min Used RIF Installer . | . . . Robots Hacked . | . . . Non-combat . | . . . Combat . | . . . Robot Hacks Applied . | . . . Relay Couplers Released . | . . . Fabnet Peak Effective % . | . . . Robots Rewired . | . . . Allies Hacked . | . . . Hacks Repelled . | . . . Allies | -11 -10 -10 -------- Run | Yrd Mat Min Total Allies . | . . . Largest Group . | . . . Highest-Rated Group . | . . . Highest-Rated Ally . | . . . Total Orders . | . . . Ally Attacks . | . . . Total Damage . | . . . Kills . | . . . Allies Corrupted . | . . . Allies Melted . | . . . Intel | -11 -10 -10 ------- Run | Yrd Mat Min Active Infowar (turns) 438 | . 128 310 Seismic 438 | . 128 310 Robot Analysis Total . | . . . Derelict Logs Recovered 1 | . . 1 Drone Launches . | . . . Drone Recoveries . | . . . Exploration | -11 -10 -10 ------------- Run | Yrd Mat Min Turns Passed 1183 | 87 786 310 Spaces Moved 722 | 49 466 207 Core 9 | 4 5 . Treads 175 | 45 130 . Legs . | . . . Wheels 538 | . 331 207 Hover . | . . . Flight . | . . . Fastest Speed 50 | 50 90 135 Average Speed 140 | 151 140 136 Slowest Speed 250 | 160 250 190 Overloaded Moves . | . . . Propulsion Burnouts . | . . . Robots Hopped . | . . . Potential Cave-ins . | . . . Cave-ins Triggered . | . . . Exploration Rate (%) 44 | 4 88 42 Regions Visited 2 Branch Regions 1 Pre-discovered Areas 1 | . . 1 Known Exits Taken . | . . . Unknown Exits Taken 2 | 1 1 . Scrap Searched 2 | . . 2 Spaces Dug 5 | . 3 2 Terrain Destroyed 22 | . 3 19 Melee 5 | . 3 2 Projectile . | . . . AOE 17 | . . 17 Terrain Rammed . | . . . Walls Destroyed . | . . . Machines Disabled . | . . . Actions | -11 -10 -10 --------- Run | Yrd Mat Min Total 817 | 58 536 223 Wait 5 | . 5 . Move 720 | 48 465 207 Hop . | . . . Pick Up 22 | 3 14 5 Fast Attach 13 | 6 6 1 Attach 6 | . 5 1 Detach 2 | . 1 1 Swap 8 | . 6 2 Drop . | . . . Fire 31 | 1 27 3 Melee 10 | . 7 3 Ram . | . . . Kick . | . . . Crush . | . . . Escape Stasis . | . . . Rewire . | . . . Trap . | . . . Miscellaneous . | . . . Route ------- -11/Scrapyard -10/Materials (discovered 4 exits: [*Mat x2] / *Min x2) -10/Mines History --------- Turn | Location | Event 3 | -11/Scrapyard | Discovered new exit (range 16) 88 | -11/Scrapyard | Entered Materials 267 | -10/Materials | Discovered new exit (range 11) 317 | -10/Materials | Build established: Mutant 611 | -10/Materials | Discovered new exit (range 4) 728 | -10/Materials | Discovered new exit (range 16) 867 | -10/Materials | Discovered new exit (range 5) 874 | -10/Materials | Entered Mines 996 | -10/Mines | Met a Derelict who couldn't figure out how to use a Trap Extractor 1097 | -10/Mines | Learned location of Zion (-7) 1136 | -10/Mines | Assembled infested the area 1161 | -10/Mines | Core integrity fell below 50% 1166 | -10/Mines | Core integrity fell below 20% 1184 | -10/Mines | Destroyed by as-29713 with Assembled Blade Last Messages --------------- 01114_ Acquired 20 matter. 01136_ ALERT: Infestation in the mines, dispatching Demolisher response squad. 01144_ R-06 Scavenger collects Lgt. Ion Engine. 01155_ Searching scrap... 01155_ Found Lgt. Ion Engine. 01155_ Found 36 Matter. 01155_ Found Grenade Launcher. 01155_ Found 69 Matter. 01158_ Acquired Grenade Launcher. 01162_ as-55566 destroyed. 01162_ as-73944 destroyed. 01162_ R-06 Scavenger destroyed. 01164_ Wheel destroyed. 01164_ System corrupted by crushing effect (+2). 01168_ G-47 Trooper destroyed. 01169_ Grenade Launcher destroyed. 01177_ Integrated Corrupted Hvy. Flail (+2). 01182_ Lgt. Angular Momentum Engine destroyed. 01182_ Beamcaster destroyed. Map ----- +----------------------------------------------------+ | ?????????????????????????????????????????????????? | | ?????????????????????????????????????????????????? | | ?????????????????????????????????????????????????? | | ?????????????????????????????????????????????????? | | ?????????????????????????????????????????????????? | | ?????????????????????????????????????????????????? | | ?????????????????????????????????????????????????? | | ?????????????????????????????????????????????????? | | ?????????????????????????????????????????????????? | | ?????????????????????????????????????????????????? | | ?????????????????????????????????????????????????? | | ?????????????????????????????????????????????????? | | ?????????????????????????????????????????????????? | | ?????????????????????????????????????????????????? | | ?????????????????????????????????????????????????? | | ?????????????????????????????????????????????????? | | ?????????????????????????????????????????????????? | | ?????????????????????????????????????????????????? | | ?????????????????????????????????????????????????? | | ?????????????????????????????????????????????????? | | ?????????????????????????????????????????????????? | | ?????????????????????????????????????????????????? | | ?????????????????????????????????????????????????? | | ??????????????????????????##?????????????????????? | | ????????????????????????## #?????????????????????? | | ????????????????????#####@#####??????????????????? | | ????????????????????# aaa #??????????????????? | | ????????????????????# """a""" #??????????????????? | | ????????????????????# """a""" #??????????????????? | | ????????????????????# """a"""[#??????????????????? | | ????????????????????# a =%!#?# #######????????? | | ????????????????######## ###%[ ###% "???? | | ???????????????## ##?# a## ! ??? | | ???????????????# #?# a% ?????? | | ???????????????# ### %* % #????????????? | | ???????????????# ###### = ##????????????? | | ???????????????# ##????# %*#?????????????? | | ???????????????# ####??####= #?????????????? | | ???????????????## ####### #?????????????? | | #???????????????# #?????????????? | | ###?????????????## #?????????????? | | "#??????????????## #########?????????????? | | #???????????????#%#### ##?????????????????????? | | ##???????????????#*#??####??????????????????????? | | [###??????????????# #????????????????????????????? | | ## #??????????????# #????????????????????????????? | | X #???????????#### ####?????????????????????????? | | #???????????# #?????????????????????????? | | #???????????# #???????????????????????### | | #???????????# #??????????????????????## | +----------------------------------------------------+ Best States ------------- Heat Dissipation 25 Energy Generation 18 Energy Capacity 250 Matter Stores 300 Matter Capacity 300 Sight Range 16 Terrain Scan Density 10 Armor Coverage 150 Evasion (%) 42 Recoil Reduction 2 Item Schematics ----------------- None Robot Schematics ------------------ None Fabricated ------------ Nothing Repaired ---------- Nothing Alien Tech Used ----------------- None Achievements -------------- None Challenges ------------ None Game ------ Seed NavigationDeepCanceller Manual? 0 Play Time 00:09:53 Cumulative 65.7 hours Start 2025.06.01 @ 21:40:39 End 2025.06.01 @ 21:47:55 Sessions 1 Manual Loads 0 Difficulty Rogue Special Mode None Game No. 46 Rogue 46 Adventurer 0 Explorer 0 Win Type - Total 5 Types 2/0/1/0/1/0/0/0/0/1 Lore% 54 Gallery% 50 Achievement% 55 Wizard Run 0 Options --------- Layout 0 ASCII 0 Keyboard 1 Movement Vi Keybinds 0 Fullscreen 2 Font 18/SmallcapsGlow Map View 76x50 Zoom Use 0% Tactical HUD 1 Map Filters NONE Filters NONE Steam 1 RUN: b6d9162a-8b41-43f3-b6be-4f45f9bbc916